fUST/lending_fUST_20250822
["ID","MTS","AMOUNT","RATE_DAILY","PERIOD"]
[380687959,1755845449065,-484.06,0.00024657,10]
[380687961,1755845449074,-484.07299673,0.00024657,10]
[380687963,1755845449084,-480.0,0.00024657,10]
[380687965,1755845449094,-386.53921125,0.00024657,10]
[380687967,1755845449103,-480.0,0.00024657,10]
[380687969,1755845449112,-480.0,0.00024657,10]
[380687971,1755845449121,-528.9579881,0.00024657,10]
[380687973,1755845449131,-484.36325511,0.00024657,10]
[380687975,1755845449140,-484.37656253,0.00024657,7]
[380687977,1755845449149,-480.0,0.00024657,10]
[380687979,1755845449159,-480.0,0.00024657,10]
[380687981,1755845449168,-482.32351009,0.00024657,10]
[380687983,1755845449177,-480.0,0.00024657,10]
[380687985,1755845449186,-480.0,0.00024657,10]
[380687987,1755845449195,-480.0,0.00024657,10]
[380687989,1755845449204,-480.0,0.00024657,10]
[380687991,1755845449213,-480.0,0.00024657,10]
[380687993,1755845449223,-480.0,0.00024657,10]
[380687996,1755845449233,-485.60820581,0.00024657,10]
[380687998,1755845449242,-480.0,0.00024657,10]
[380688000,1755845449252,-482.18123553,0.00024657,10]
[380688002,1755845449261,-491.56330834,0.00024657,10]
[380688003,1755845449273,-480.0,0.00024657,10]
[380688005,1755845449283,-480.0,0.00024657,10]
[380688007,1755845449292,-480.0,0.00024657,10]
[380688009,1755845449302,-480.0,0.00024657,10]
[380688012,1755845449311,-384.96860732,0.00024657,10]
[380688014,1755845449321,-480.0,0.00024657,10]
[380688015,1755845449330,-480.0,0.00024657,10]
[380688018,1755845449340,-483.24761625,0.00024657,10]
[380688019,1755845449350,-480.0,0.00024657,10]
[380688022,1755845449359,-480.0,0.00024657,10]
[380688024,1755845449369,-1870.55,0.00024657,10]
[380688026,1755845449378,-480.0,0.00024657,10]
[380688028,1755845449387,-485.98313907,0.00024657,10]
[380688030,1755845449398,-480.0,0.00024657,10]
[380688032,1755845449407,-480.0,0.00024657,10]
[380688034,1755845449416,-462.44146697,0.00024657,10]
[380688036,1755845449426,-480.0,0.00024657,10]
[380688038,1755845449435,-480.0,0.00024657,10]
[380688040,1755845449445,-480.0,0.00024657,10]
[380688042,1755845449454,-480.0,0.00024657,10]
[380688044,1755845449464,-480.0,0.00024657,10]
[380688045,1755845449473,-480.0,0.00024657,10]
[380688048,1755845449482,-1567.11,0.00024657,10]
[380688050,1755845449492,-480.0,0.00024657,10]
[380688051,1755845449502,-480.0,0.00024657,10]
[380688054,1755845449512,-480.0,0.00024657,10]
[380688056,1755845449522,-480.0,0.00024657,10]
[380688058,1755845449532,-480.0,0.00024657,10]
[380688060,1755845449542,-220.40433762,0.00024657,10]
[380688062,1755845449551,-480.0,0.00024657,10]
[380688064,1755845449564,-482.77456635,0.00024657,10]
[380688066,1755845449573,-480.0,0.00024657,10]
[380688068,1755845449582,-480.0,0.00024657,10]
[380688070,1755845449592,-480.0,0.00024657,10]
[380688072,1755845449602,-480.0,0.00024657,10]
[380688074,1755845449611,-481.69835467,0.00024657,10]
[380688076,1755845449620,-480.0,0.00024657,10]
[380688078,1755845449631,-358.51042821,0.00024657,2]
[380688080,1755845449642,-480.0,0.00024657,10]
[380688082,1755845449651,-480.0,0.00024657,10]
[380688084,1755845449660,-483.74865887,0.00024657,10]
[380688086,1755845449670,-480.0,0.00024657,10]
[380688088,1755845449679,-480.0,0.00024657,10]
[380688090,1755845449688,-480.0,0.00024657,10]
[380688092,1755845449697,-480.0,0.00024657,10]
[380688094,1755845449707,-506.77722782,0.00024657,10]
[380688096,1755845449715,-836.35,0.00024657,10]
[380688098,1755845449724,-884.98,0.00024657,10]
[380688100,1755845449733,-490.9108676,0.00024657,7]
[380688102,1755845449742,-480.0,0.00024657,10]
[380688104,1755845449752,-216.99125601,0.00024657,10]
[380688106,1755845449761,-480.0,0.00024657,10]
[380688108,1755845449770,-480.0,0.00024657,10]
[380688110,1755845449779,-480.0,0.00024657,10]
[380688111,1755845449787,-487.22365018,0.00024657,10]
[380688114,1755845449797,-1678.09,0.00024657,10]
[380688116,1755845449806,-480.0,0.00024657,10]
[380688117,1755845449815,-480.0,0.00024657,10]
[380688120,1755845449824,-480.0,0.00024657,10]
[380688122,1755845449834,-480.0,0.00024657,10]
[380688124,1755845449846,-480.0,0.00024657,2]
[380688126,1755845449855,-480.0,0.00024657,10]
[380688128,1755845449864,-471.28602814,0.00024657,10]
[380688130,1755845449874,-480.0,0.00024657,10]
[380688131,1755845449882,-478.20581391,0.00024657,10]
[380688133,1755845449891,-480.0,0.00024657,10]
[380688135,1755845449900,-480.0,0.00024657,10]
[380688137,1755845449909,-480.0,0.00024657,10]
[380688140,1755845449919,-500.0,0.00024673,2]
[380688142,1755845449929,-420.0,0.00024754,2]
[380688144,1755845449938,-310.12420711,0.0002482,2]
[380688146,1755845449947,-735.42999656,0.00024831,2]
[380688148,1755845449957,-578.20443966,0.00024873,2]
[380688150,1755845449966,-503.3881858,0.00024873,2]
[380688152,1755845449975,-502.39681677,0.00024873,2]
[380688154,1755845449985,-595.85169125,0.00024873,2]
[380688156,1755845449994,-500.0,0.00024873,2]
[380688158,1755845450003,-134810.582012,0.000249,2]
[380688160,1755845450012,-384.7680014,0.0002492,2]
[380688162,1755845450022,-622.90375376,0.00024921,2]
[380688164,1755845450031,-134810.582012,0.00024921,2]
[380688166,1755845450041,-480.0,0.00024931,10]
[380688168,1755845450051,-480.0,0.00024931,10]
[380688170,1755845450060,-480.0,0.00024931,10]
[380688172,1755845450070,-480.0,0.00024931,10]
[380688174,1755845450079,-480.0,0.00024931,10]
[380688176,1755845450089,-480.0,0.00024931,10]
[380688178,1755845450098,-480.0,0.00024931,10]
[380688180,1755845450108,-480.0,0.00024931,10]
[380688182,1755845450117,-480.0,0.00024931,10]
[380688184,1755845450127,-480.0,0.00024931,10]
[380688186,1755845450136,-480.0,0.00024931,10]
[380688197,1755845450231,-480.0,0.00024931,10]
[380688199,1755845450241,-480.0,0.00024931,10]
[380688201,1755845450251,-410.48463645,0.00024931,10]
[380688203,1755845450261,-480.0,0.00024931,10]
[380688205,1755845450270,-494.92008824,0.00024931,10]
[380688207,1755845450279,-480.0,0.00024931,10]
[380688209,1755845450288,-487.32798452,0.00024931,10]
[380688211,1755845450297,-480.0,0.00024931,10]
[380688213,1755845450306,-306.34173253,0.00024931,10]
[380688215,1755845450316,-480.0,0.00024931,10]
[380688217,1755845450324,-456.42216386,0.00024931,10]
[380688219,1755845450334,-480.0,0.00024931,10]
[380688221,1755845450343,-480.0,0.00024931,10]
[380688223,1755845450353,-480.0,0.00024931,10]
[380688225,1755845450362,-793.17,0.00024931,10]
[380688227,1755845450372,-483.4548499,0.00024931,10]
[380688229,1755845450380,-480.0,0.00024931,10]
[380688231,1755845450391,-480.0,0.00024931,10]
[380688233,1755845450400,-155.25,0.00024931,10]
[380688235,1755845450410,-480.0,0.00024931,10]
[380688237,1755845450419,-447.45883699,0.00024931,10]
[380688239,1755845450428,-305.72001121,0.00024931,10]
[380688241,1755845450438,-480.0,0.00024931,10]
[380688243,1755845450447,-480.0,0.00024931,10]
[380688245,1755845450456,-480.0,0.00024931,10]
[380688246,1755845450465,-480.0,0.00024931,10]
[380688248,1755845450475,-480.0,0.00024931,10]
[380688250,1755845450484,-480.0,0.00024931,10]
[380688252,1755845450493,-550.95917263,0.00024931,10]
[380688255,1755845450502,-501.8521594,0.00024931,10]
[380688256,1755845450512,-480.0,0.00024931,10]
[380688258,1755845450521,-480.0,0.00024931,10]
[380688260,1755845450532,-480.0,0.00024931,10]
[380688262,1755845450540,-485.22828877,0.00024931,10]
[380688264,1755845450549,-480.0,0.00024931,10]
[380688266,1755845450561,-480.0,0.00024931,10]
[380688268,1755845450570,-480.0,0.00024931,10]
[380688270,1755845450579,-480.0,0.00024931,10]
[380688272,1755845450588,-480.0,0.00024931,10]
[380688274,1755845450597,-480.0,0.00024931,10]
[380688276,1755845450606,-483.99060665,0.00024931,10]
[380688278,1755845450615,-480.0,0.00024931,10]
[380688280,1755845450625,-480.0,0.00024931,10]
[380688282,1755845450634,-488.64163786,0.00024931,10]
[380688284,1755845450644,-480.0,0.00024931,10]
[380688286,1755845450653,-480.0,0.00024931,10]
[380688288,1755845450664,-480.0,0.00024931,10]
[380688290,1755845450672,-489.37777141,0.00024931,10]
[380688292,1755845450683,-323.28044197,0.00024931,10]
[380688294,1755845450692,-485.18854154,0.00024931,10]
[380688296,1755845450702,-499.93091379,0.00024931,10]
[380688298,1755845450711,-594.85,0.00024931,10]
[380688300,1755845450721,-480.0,0.00024931,10]
[380688302,1755845450733,-480.0,0.00024931,10]
[380688304,1755845450742,-480.0,0.00024931,10]
[380688306,1755845450751,-483.04152026,0.00024931,10]
[380688308,1755845450760,-480.0,0.00024931,10]
[380688310,1755845450769,-491.63493958,0.00024931,10]
[380688312,1755845450779,-480.0,0.00024931,10]
[380688314,1755845450788,-480.0,0.00024931,10]
[380688316,1755845450798,-480.0,0.00024931,10]
[380688318,1755845450807,-480.0,0.00024931,10]
[380688320,1755845450817,-480.0,0.00024931,10]
[380688322,1755845450826,-480.0,0.00024931,10]
[380688324,1755845450835,-424.00892986,0.00024931,10]
[380688326,1755845450844,-496.09635831,0.00024931,10]
[380688328,1755845450853,-480.0,0.00024931,10]
[380688330,1755845450863,-183.99644533,0.00024931,10]
[380688332,1755845450873,-480.0,0.00024931,10]
[380688334,1755845450882,-480.0,0.00024931,10]
[380688336,1755845450891,-480.0,0.00024931,10]
[380688338,1755845450900,-480.0,0.00024931,10]
[380688340,1755845450910,-480.0,0.00024931,10]
[380688342,1755845450919,-480.0,0.00024931,10]
[380688344,1755845450928,-480.0,0.00024931,10]
[380688346,1755845450937,-494.90288188,0.00024931,10]
[380688348,1755845450946,-492.68582568,0.00024931,10]
[380688350,1755845450955,-480.0,0.00024931,10]
[380688352,1755845450964,-2190.51,0.00024931,10]
[380688354,1755845450973,-480.0,0.00024931,10]
[380688356,1755845450982,-480.0,0.00024931,10]
[380688358,1755845450991,-488.25188875,0.00024931,10]
[380688360,1755845451001,-507.29551915,0.00024931,10]
[380688362,1755845451010,-221.74794989,0.00024931,10]
[380688364,1755845451019,-480.0,0.00024931,10]
[380688366,1755845451028,-480.0,0.00024931,10]
[380688368,1755845451037,-480.0,0.00024931,10]
[380688370,1755845451047,-484.91371282,0.00024931,10]
[380688372,1755845451056,-480.0,0.00024931,10]
[380688374,1755845451066,-403.29730142,0.00024931,10]
[380688376,1755845451075,-480.0,0.00024931,10]
[380688378,1755845451084,-480.0,0.00024931,10]
[380688380,1755845451093,-480.0,0.00024931,10]
[380688382,1755845451102,-480.0,0.00024931,10]
[380688383,1755845451111,-480.0,0.00024931,10]
[380688385,1755845451122,-480.0,0.00024931,10]
[380688387,1755845451131,-493.87233437,0.00024931,10]
[380688389,1755845451140,-480.0,0.00024931,10]
[380688391,1755845451150,-593.86904045,0.00024931,10]
[380688393,1755845451159,-480.0,0.00024931,10]
[380688395,1755845451168,-480.0,0.00024931,10]
[380688397,1755845451177,-492.18053891,0.00024931,10]
[380688399,1755845451186,-485.72210826,0.00024931,10]
[380688401,1755845451195,-480.0,0.00024931,10]
[380688403,1755845451204,-480.0,0.00024931,10]
[380688405,1755845451214,-480.0,0.00024931,10]
[380688407,1755845451223,-482.96965623,0.00024931,10]
[380688409,1755845451232,-971.82,0.00024931,10]
[380688411,1755845451241,-480.0,0.00024931,10]
[380688413,1755845451251,-480.0,0.00024931,10]
[380688415,1755845451260,-480.0,0.00024931,10]
[380688417,1755845451269,-482.21,0.00024931,3]
[380688419,1755845451280,-464.92966852,0.00024931,10]
[380688421,1755845451290,-480.0,0.00024931,10]
[380688423,1755845451299,-480.0,0.00024931,10]
[380688425,1755845451309,-470.89243537,0.00024931,10]
[380688427,1755845451318,-527.37059702,0.00024931,10]
[380688429,1755845451328,-480.0,0.00024931,10]
[380688431,1755845451337,-480.0,0.00024931,10]
[380688433,1755845451346,-480.0,0.00024931,10]
[380688435,1755845451355,-480.0,0.00024931,10]
[380688437,1755845451366,-400.04601184,0.00024931,10]
[380688441,1755845451387,-84.01398816,0.00024931,10]
[380688443,1755845451396,-480.0,0.00024931,10]
[380688444,1755845451405,-109.58759713,0.00024931,10]
[380689406,1755845462201,3048.67922956,0.000199,2]
[380692390,1755845629339,2947.05658842,0.000199,2]
[380692391,1755845794396,2848.82136898,0.000199,2]
[380692392,1755845959528,2828.58368814,0.000199,2]
[380692393,1755845979552,16872.36,0.00027476,60]
[380692394,1755846126626,2734.29756497,0.000199,2]
[380692395,1755846291083,2643.15431293,0.000199,2]
[380692397,1755846457660,2555.04916904,0.000199,2]
[380692398,1755846627773,2469.88086356,0.000199,2]
[380692487,1755846638318,-150.0,0.000219,2]
[380692488,1755846638328,-164.0,0.00022,2]
[380692489,1755846638338,-151.0,0.00022,2]
[380692490,1755846638347,-160.0,0.00023,2]
[380692491,1755846638357,-164.0,0.00023014,7]
[380692492,1755846638366,-152.0,0.00023014,7]
[380692493,1755846638376,-2455.67884164,0.00023229,2]
[380692527,1755846640281,-14.20202172,0.00023229,2]
[380692529,1755846640290,-386.9439334,0.00023671,2]
[380692531,1755846640299,-93.51823038,0.00023671,2]
[380694252,1755846793630,2140.17342324,0.000199,2]
[380694253,1755846959796,2068.83430919,0.000199,2]
[380694254,1755847124352,2005.9438722,0.000199,2]
[380694256,1755847290001,1993.63837357,0.000199,2]
[380694258,1755847418198,-5000000.0,0.00027478,20]
[380694259,1755847422221,-5000000.0,0.00027478,20]
[380694260,1755847424401,3610.84184127,0.0002,2]
[380694261,1755847457331,1860.74404926,0.000199,2]
[380694264,1755847625477,1863.96976241,0.000199,2]
[380694265,1755847647442,3580.13964581,0.0001922,2]
[380694266,1755847682576,5000.0,0.0002,2]
[380694267,1755847699453,5000.0,0.0002,2]
[380694268,1755847714796,5000.0,0.0002,2]
[380694271,1755847730366,5000.0,0.0002,2]
[380694272,1755847746175,5000.0,0.0002,2]
[380694273,1755847762268,5000.0,0.0002,2]
[380694274,1755847778279,5000.0,0.0002,2]
[380694275,1755847793498,1921.04294722,0.000199,2]
[380694276,1755847795308,3170.83824909,0.0002,2]
[380694289,1755847832583,-282.8399965,0.00020187,2]
[380694290,1755847832593,-457.66437814,0.00020187,2]
[380694291,1755847832604,-699.62160212,0.00020492,2]
[380694293,1755847832613,-285.69,0.000221,2]
[380694295,1755847832622,-250.0,0.00022167,2]
[380694297,1755847832631,-184.88462635,0.00022189,2]
[380694299,1755847832640,-293.425703,0.00022712,2]
[380694301,1755847832649,-1162.0018274,0.00022778,2]
[380694303,1755847832658,-153.0,0.00023078,2]
[380694307,1755847832668,-153.0,0.000231,2]
[380694309,1755847832677,-386.9439334,0.00023141,2]
[380694312,1755847832686,-386.9439334,0.00023141,2]
[380694314,1755847832695,-294.0594923,0.00023278,2]
[380694317,1755847832704,-1200.0,0.00023396,2]
[380694318,1755847832713,-153.0,0.00023397,2]
[380694320,1755847832722,-421.4844175,0.00023397,2]
[380694322,1755847832731,-153.0,0.00023397,2]
[380694324,1755847832741,-153.0,0.00023397,2]
[380694326,1755847832750,-153.0,0.00023397,2]
[380694328,1755847832759,-153.0,0.00023397,2]
[380694330,1755847832768,-153.0,0.00023397,2]
[380694332,1755847832778,-153.0,0.00023397,2]
[380694334,1755847832787,-153.0,0.00023397,2]
[380694336,1755847832796,-153.0,0.00023397,2]
[380694338,1755847832805,-153.0,0.00023397,2]
[380694340,1755847832814,-294.0594923,0.000235,2]
[380694342,1755847832823,-153.0,0.000235,2]
[380694344,1755847832832,-160.9356585,0.000235,2]
[380694345,1755847832841,-153.0,0.000235,2]
[380694346,1755847832851,-386.9439334,0.000235,2]
[380694347,1755847832860,-153.0,0.000235,2]
[380694349,1755847832870,-160.9356585,0.00023578,2]
[380694351,1755847832879,-153.0,0.00023578,2]
[380694353,1755847832889,-294.0594923,0.00023578,2]
[380694354,1755847832899,-294.0594923,0.00023578,2]
[380694356,1755847832908,-294.0594923,0.00023578,2]
[380694357,1755847832923,-160.9356585,0.00023578,2]
[380694359,1755847832932,-469.718066,0.00023586,2]
[380694361,1755847832942,-160.9356585,0.000236,2]
[380694362,1755847832951,-294.0594923,0.000236,2]
[380694364,1755847832961,-153.0,0.000236,2]
[380694365,1755847832971,-294.0594923,0.000236,2]
[380694366,1755847832980,-160.9356585,0.000236,2]
[380694367,1755847832989,-294.0594923,0.000236,2]
[380694368,1755847833001,-160.9356585,0.000236,2]
[380694369,1755847833011,-153.0,0.000236,2]
[380694370,1755847833020,-588.1189846,0.000236,2]
[380694371,1755847833030,-91.7355136,0.000236,2]
[380694381,1755847838636,-295.2084198,0.000236,2]
[380694382,1755847838646,-153.0,0.000236,2]
[380694383,1755847838655,-386.9439334,0.00023671,2]
[380694384,1755847838664,-386.9439334,0.00023671,2]
[380694385,1755847838674,-386.9439334,0.00023671,2]
[380694386,1755847838684,-386.9439334,0.00023671,2]
[380694387,1755847838694,-386.9439334,0.00023671,2]
[380694388,1755847838703,-386.9439334,0.00023671,2]
[380694389,1755847838712,-386.9439334,0.00023671,2]
[380694390,1755847838721,-160.9356585,0.000237,2]
[380694391,1755847838730,-153.0,0.000237,2]
[380694392,1755847838740,-294.0594923,0.000237,2]
[380694393,1755847838749,-294.0594923,0.000237,2]
[380694394,1755847838758,-160.9356585,0.000237,2]
[380694395,1755847838768,-294.0594923,0.000237,2]
[380694396,1755847838777,-160.0,0.00023738,2]
[380694397,1755847838786,-151.0,0.00023778,2]
[380694398,1755847838795,-151.0,0.00023778,2]
[380694399,1755847838804,-151.0,0.00023778,2]
[380694400,1755847838814,-153.0,0.00023778,2]
[380694401,1755847838824,-160.9356585,0.00023778,2]
[380694402,1755847838833,-294.0594923,0.00023778,2]
[380694403,1755847838842,-1332.24161927,0.00023779,2]
[380694404,1755847838852,-1332.24161927,0.00023786,2]
[380694405,1755847838862,-294.0594923,0.000238,2]
[380694406,1755847838872,-153.0,0.000238,2]
[380694407,1755847838881,-153.0,0.000238,2]
[380694408,1755847838890,-159.9739932,0.000238,2]
[380694409,1755847838900,-232.32572668,0.00023823,2]
[380694410,1755847838910,-160.0,0.00023823,2]
[380694411,1755847838919,-216.99125601,0.00023823,2]
[380694412,1755847838929,-160.0,0.00023825,2]
[380694413,1755847838943,-160.0,0.00023825,2]
[380694414,1755847838952,-999.38872083,0.00023872,2]
[380694415,1755847838962,-500.0,0.00023873,2]
[380694416,1755847838973,-500.0,0.00023873,2]
[380694417,1755847838984,-500.6015621,0.00023873,2]
[380694418,1755847838994,-500.0,0.00023873,2]
[380694419,1755847839003,-500.64421565,0.00023873,2]
[380694420,1755847839013,-501.31653892,0.00023873,2]
[380694421,1755847839023,-501.09899142,0.00023873,2]
[380694422,1755847839032,-500.62388619,0.00023873,2]
[380694423,1755847839041,-500.0,0.00023873,2]
[380694424,1755847839051,-500.0,0.00023873,2]
[380694425,1755847839061,-504.15682338,0.00023873,2]
[380694426,1755847839070,-465.78228169,0.00023873,2]
[380694427,1755847839080,-500.74117236,0.00023873,2]
[380694428,1755847839089,-500.0,0.00023873,2]
[380694429,1755847839099,-500.95557612,0.00023873,2]
[380694430,1755847839110,-502.5053185,0.00023873,2]
[380694431,1755847839119,-500.0,0.00023873,2]
[380694432,1755847839128,-500.0,0.00023873,2]
[380694433,1755847839138,-500.76090604,0.00023873,2]
[380694434,1755847839147,-500.0,0.00023873,2]
[380694435,1755847839157,-500.0,0.00023873,2]
[380694436,1755847839167,-801.0,0.00023873,2]
[380694437,1755847839176,-151.0,0.00023873,2]
[380694438,1755847839186,-156.365,0.00023899,5]
[380694439,1755847839195,-2893.92,0.00023899,2]
[380694440,1755847839204,-99737.97993855,0.000239,2]
[380694441,1755847839214,-386.9439334,0.000239,2]
[380694442,1755847839224,-212.5831133,0.000239,2]
[380694443,1755847839233,-386.9439334,0.000239,2]
[380694444,1755847839243,-151.0,0.000239,2]
[380694445,1755847839253,-290.5,0.00023963,3]
[380694446,1755847839262,-871.5,0.00023963,3]
[380694447,1755847839271,-254.29250044,0.00023972,2]
[380694448,1755847839281,-500.0,0.00023973,2]
[380694449,1755847839291,-500.0,0.00023973,2]
[380694450,1755847839300,-500.0,0.00023973,2]
[380694451,1755847839310,-500.0,0.00023973,2]
[380694452,1755847839319,-501.31754627,0.00023973,2]
[380694453,1755847839328,-500.0,0.00023973,2]
[380694454,1755847839339,-501.62235737,0.00023973,2]
[380694455,1755847839348,-158.34098357,0.00023973,2]
[380694456,1755847839358,-608.79553546,0.00023973,2]
[380694457,1755847839368,-500.0,0.00023973,2]
[380694458,1755847839377,-502.98345367,0.00023973,2]
[380694459,1755847839387,-500.0,0.00023973,2]
[380694460,1755847839396,-500.0,0.00023973,2]
[380694461,1755847839405,-500.0,0.00023973,2]
[380694462,1755847839415,-500.0,0.00023973,2]
[380694463,1755847839425,-500.0,0.00023973,2]
[380694464,1755847839437,-500.0,0.00023973,2]
[380694465,1755847839456,-500.0,0.00023973,2]
[380694466,1755847839466,-500.0,0.00023973,2]
[380694467,1755847839475,-500.0,0.00023973,2]
[380694468,1755847839485,-500.0,0.00023973,2]
[380694469,1755847839494,-500.0,0.00023973,2]
[380694470,1755847839503,-511.2625357,0.00023973,2]
[380694471,1755847839513,-503.1660041,0.00023973,2]
[380694472,1755847839523,-500.96235085,0.00023973,2]
[380694473,1755847839532,-503.829323,0.00023973,2]
[380694474,1755847839541,-1578.28209144,0.00023995,2]
[380694475,1755847839551,-75361.80009978,0.00024,2]
[380694476,1755847839560,-12740.12765391,0.00024,2]
[380694477,1755847839570,-151.0,0.00024052,2]
[380694478,1755847839579,-151.0,0.00024052,2]
[380694479,1755847839589,-151.0,0.00024095,2]
[380694480,1755847839598,-19187.29552238,0.00024095,2]
[380694481,1755847839608,-151.91850331,0.00024095,2]
[380694482,1755847839617,-262.7,0.000241,7]
[380694483,1755847839626,-623.3810191,0.000241,2]
[380694484,1755847839636,-5672.57,0.000241,7]
[380694485,1755847839645,-3210.97,0.000241,7]
[380694486,1755847839655,-801.0,0.00024147,2]
[380694487,1755847839665,-200.00135488,0.00024147,2]
[380694488,1755847839674,-247.38855246,0.00024174,2]
[380694489,1755847839683,-214.9913186,0.00024192,2]
[380694490,1755847839692,-153.0,0.00024219,2]
[380694491,1755847839702,-153.0,0.00024219,2]
[380694492,1755847839712,-153.0,0.00024219,2]
[380694493,1755847839722,-153.0,0.00024219,2]
[380694494,1755847839731,-153.0,0.00024219,2]
[380694495,1755847839740,-153.0,0.00024219,2]
[380694496,1755847839750,-153.0,0.00024219,2]
[380694497,1755847839759,-198.0,0.00024326,2]
[380694498,1755847839769,-151.0,0.000244,7]
[380694499,1755847839779,-151.0,0.000244,7]
[380694500,1755847839789,-1000.0,0.00024421,2]
[380694501,1755847839799,-1000.0,0.00024421,2]
[380694502,1755847839808,-1000.0,0.00024421,2]
[380694503,1755847839818,-801.0,0.00024421,2]
[380694504,1755847839933,-151.0,0.00024421,7]
[380694505,1755847839947,-237.587861,0.00024421,7]
[380694506,1755847839956,-151.0,0.00024421,7]
[380694507,1755847839966,-151.0,0.00024421,7]
[380694508,1755847839976,-270.005653,0.00024421,7]
[380694509,1755847839986,-151.0,0.00024421,7]
[380694510,1755847839996,-151.0,0.00024421,7]
[380694511,1755847840005,-151.0,0.00024421,7]
[380694512,1755847840015,-151.0,0.00024421,7]
[380694513,1755847840026,-151.0,0.00024421,7]
[380694514,1755847840036,-151.0,0.00024421,7]
[380694515,1755847840046,-154.760978,0.00024421,7]
[380694516,1755847840055,-254.0,0.00024438,2]
[380694518,1755847840066,-1578.28209142,0.00024472,2]
[380694519,1755847840075,-660.53790346,0.000245,2]
[380694520,1755847840085,-501.03600475,0.00024521,2]
[380694521,1755847840095,-1000.0,0.00024521,2]
[380694522,1755847840104,-553.44226021,0.00024521,2]
[380694523,1755847840114,-1000.0,0.00024521,2]
[380694524,1755847840123,-669.58929109,0.00024521,2]
[380694526,1755847840133,-1000.0,0.00024521,2]
[380694527,1755847840142,-271.79791669,0.00024521,2]
[380694528,1755847840151,-1000.0,0.00024521,2]
[380694529,1755847840161,-1076.47031468,0.00024521,2]
[380694530,1755847840171,-500.0,0.00024521,2]
[380694531,1755847840180,-1001.1829709,0.00024521,2]
[380694532,1755847840191,-1000.0,0.00024521,2]
[380694533,1755847840201,-306.75786233,0.00024521,2]
[380694534,1755847840210,-1007.41050581,0.00024521,2]
[380694535,1755847840220,-501.12102435,0.00024521,2]
[380694536,1755847840229,-1000.96341261,0.00024521,2]
[380694537,1755847840240,-1000.0,0.00024521,2]
[380694538,1755847840250,-1000.0,0.00024557,2]
[380694539,1755847840259,-7295.36952858,0.00024557,2]
[380694540,1755847840268,-379.6349903,0.0002462,2]
[380694541,1755847840278,-11507.01241054,0.0002465,2]
[380694542,1755847840287,-480.0,0.00024657,10]
[380694543,1755847840297,-480.0,0.00024657,10]
[380694544,1755847840306,-480.0,0.00024657,10]
[380694545,1755847840316,-406.33251424,0.00024657,10]
[380694546,1755847840325,-480.0,0.00024657,10]
[380694548,1755847840335,-480.0,0.00024657,10]
[380694550,1755847840344,-480.0,0.00024657,10]
[380694551,1755847840354,-490.84757827,0.00024657,10]
[380694552,1755847840363,-490.69967964,0.00024657,10]
[380694554,1755847840374,-488.82160219,0.00024657,10]
[380694555,1755847840384,-486.24773051,0.00024657,10]
[380694557,1755847840394,-480.0,0.00024657,10]
[380694559,1755847840403,-480.0,0.00024657,10]
[380694561,1755847840413,-480.0,0.00024657,10]
[380694562,1755847840423,-480.0,0.00024657,10]
[380694563,1755847840432,-480.0,0.00024657,10]